{"text_format":"1","workbook":"xlsx","n_sheets":12,"sheets":["L1 Acqua","L2 Surgelati","L3 Avicunicoli","L4 Insaccati","L5 Ortofrutta","L6 Alimentari","L7 Latticini","L8 Uova","L9 Olio","L10 Pane","L11 Pane SG","L12 Gelato"],"not_rendered":{"charts":0,"images":0,"macros":1,"external_links":0,"defined_names":2,"comments":0,"pivot_tables":0},"unopened":[],"bounds":{"document_bytes":16777216,"sheet_cells":100000,"rows_first":2000,"rows_last":500,"rows_between":2000,"halvings":0,"cell_chars":16384,"cell_head_chars":4096},"cells_cut":0,"cells_raw":0,"read":"whole","date_system":"1900"}

{"sheet":"L1 Acqua","index":0,"n_rows":15,"n_cols":7,"rows_kept":15,"cut":false,"hidden":false,"merged":[[0,0,0,6],[1,0,1,6],[2,0,2,6]]}
["ALLEGATO D"]
["MODULO DI PRESENTAZIONE DELL'OFFERTA ECONOMICA"]
["LOTTO 1 – ACQUA MINERALE NATURALE"]
[]
["Il sottoscritto _____________________________________________ in qualità di legale rappresentante o persona munita di idonea procura (già allegata alla dichiarazione"]
["di cui all'Allegato B al bando di gara) dell'impresa/ATI __________________________________________________________________________________ con sede legale a"]
["_____________________________________ in _____________________________________________________ n. _______ P.IVA/COE _________________________"]
[]
["dichiara di presentare la seguente offerta economica, che sottoscrive in calce ad ogni sua pagina, in relazione alle quantità indicate dei prodotti costituenti il lotto"]
["di gara, proponendo i seguenti prezzi unitari (cioè riferiti alle unità di misura - U.M. - specificate in tabella), espressi in euro sia in cifre sia in lettere."]
[]
["COD.","DESCRIZIONE PRODOTTO","U.M.","QUANTITÀ","PREZZO UNITARIO (EURO) IN CIFRE","PREZZO UNITARIO (EURO) IN LETTERE","IMPORTO COMPLESSIVO\n(EURO) IN CIFRE"]
["1.1","Acqua minerale naturale da 1,5 litri","pezzi",120000,0,{"$f":"valoreinlettere(E13)","v":"zero/00"},{"$f":"D13*E13","v":0}]
["1.2","Acqua minerale naturale da 0,5 litri","pezzi",10000,0,{"$f":"valoreinlettere(E14)","v":"zero/00"},{"$f":"D14*E14","v":0}]
[null,null,null,null,null,"IMPORTO COMPLESSIVO DEL LOTTO  >",{"$f":"SUM(G13:G14)","v":0}]

{"sheet":"L2 Surgelati","index":1,"n_rows":21,"n_cols":7,"rows_kept":21,"cut":false,"hidden":false,"merged":[[0,0,0,6],[1,0,1,6],[2,0,2,6]]}
["ALLEGATO D"]
["MODULO DI PRESENTAZIONE DELL'OFFERTA ECONOMICA"]
["LOTTO 2 – PESCE E VERDURE SURGELATI"]
[]
["Il sottoscritto _____________________________________________ in qualità di legale rappresentante o persona munita di idonea procura (già allegata alla dichiarazione"]
["di cui all'Allegato B al bando di gara) dell'impresa/ATI __________________________________________________________________________________ con sede legale a"]
["_____________________________________ in _____________________________________________________ n. _______ P.IVA/COE _________________________"]
[]
["dichiara di presentare la seguente offerta economica, che sottoscrive in calce ad ogni sua pagina, in relazione alle quantità indicate dei prodotti costituenti il lotto"]
["di gara, proponendo i seguenti prezzi unitari (cioè riferiti alle unità di misura - U.M. - specificate in tabella), espressi in euro sia in cifre sia in lettere."]
[]
["COD.","DESCRIZIONE PRODOTTO","U.M.","QUANTITÀ","PREZZO UNITARIO (EURO) IN CIFRE","PREZZO UNITARIO (EURO) IN LETTERE","IMPORTO\nCOMPLESSIVO\nIN CIFRE"]
["2.1","CALAMARO PULITO","kg",1000,0,{"$f":"valoreinlettere(E13)","v":"zero/00"},{"$f":"D13*E13","v":0}]
["2.2","SEPPIA PULITA IQF","kg",2500,0,{"$f":"valoreinlettere(E14)","v":"zero/00"},{"$f":"D14*E14","v":0}]
["2.3","CODA DI ROSPO IN TRANCI","kg",5200,0,{"$f":"valoreinlettere(E15)","v":"zero/00"},{"$f":"D15*E15","v":0}]
["2.4","FILETTO DI MERLUZZO","kg",1200,0,{"$f":"valoreinlettere(E16)","v":"zero/00"},{"$f":"D16*E16","v":0}]
["2.5","CUORE DI NASELLO","kg",2600,0,{"$f":"valoreinlettere(E17)","v":"zero/00"},{"$f":"D17*E17","v":0}]
["2.6","BIETOLE in foglie a cubetti in confezioni da 2,5 kg","kg",300,0,{"$f":"valoreinlettere(E18)","v":"zero/00"},{"$f":"D18*E18","v":0}]
["2.7","PISELLI in confezioni da 2,5 kg","kg",2000,0,{"$f":"valoreinlettere(E19)","v":"zero/00"},{"$f":"D19*E19","v":0}]
["2.8","SPINACI in foglie a cubetti in confezioni da 2,5 kg","kg",400,0,{"$f":"valoreinlettere(E20)","v":"zero/00"},0]
[null,null,null,null,null,"IMPORTO COMPLESSIVO DEL LOTTO  >",{"$f":"SUM(G13:G20)","v":0}]

{"sheet":"L3 Avicunicoli","index":2,"n_rows":21,"n_cols":7,"rows_kept":21,"cut":false,"hidden":false,"merged":[[0,0,0,6],[1,0,1,6],[2,0,2,6]]}
["ALLEGATO D"]
["MODULO DI PRESENTAZIONE DELL'OFFERTA ECONOMICA"]
["LOTTO 3 – CARNE AVICUNICOLA E SUINA"]
[]
["Il sottoscritto _____________________________________________ in qualità di legale rappresentante o persona munita di idonea procura (già allegata alla dichiarazione"]
["di cui all'Allegato B al bando di gara) dell'impresa/ATI __________________________________________________________________________________ con sede legale a"]
["_____________________________________ in _____________________________________________________ n. _______ P.IVA/COE _________________________"]
[]
["dichiara di presentare la seguente offerta economica, che sottoscrive in calce ad ogni sua pagina, in relazione alle quantità indicate dei prodotti costituenti il lotto"]
["di gara, proponendo i seguenti prezzi unitari (cioè riferiti alle unità di misura - U.M. - specificate in tabella), espressi in euro sia in cifre sia in lettere."]
[]
["COD.","DESCRIZIONE PRODOTTO","U.M.","QUANTITÀ","PREZZO UNITARIO (EURO) IN CIFRE","PREZZO UNITARIO (EURO) IN LETTERE","IMPORTO\nCOMPLESSIVO\nIN CIFRE"]
["3.1","Filone suino senza osso","kg",2100,0,{"$f":"valoreinlettere(E13)","v":"zero/00"},{"$f":"D13*E13","v":0}]
["3.2","Coniglio intero","kg",3700,0,{"$f":"valoreinlettere(E14)","v":"zero/00"},{"$f":"D14*E14","v":0}]
["3.3","Cosce di pollo","kg",400,0,{"$f":"valoreinlettere(E15)","v":"zero/00"},{"$f":"D15*E15","v":0}]
["3.4","Fesa di tacchino a fette","kg",1900,0,{"$f":"valoreinlettere(E16)","v":"zero/00"},{"$f":"D16*E16","v":0}]
["3.5","Fesa di tacchino intera","kg",2400,0,{"$f":"valoreinlettere(E17)","v":"zero/00"},{"$f":"D17*E17","v":0}]
["3.6","Petto di pollo a fette","kg",2000,0,{"$f":"valoreinlettere(E18)","v":"zero/00"},{"$f":"D18*E18","v":0}]
["3.7","Petto di pollo intero","kg",1000,0,{"$f":"valoreinlettere(E19)","v":"zero/00"},{"$f":"D19*E19","v":0}]
["3.8","Pollo a busto","kg",3000,0,{"$f":"valoreinlettere(E20)","v":"zero/00"},{"$f":"D20*E20","v":0}]
[null,null,null,null,null,"IMPORTO COMPLESSIVO DEL LOTTO  >",{"$f":"SUM(G13:G20)","v":0}]

{"sheet":"L4 Insaccati","index":3,"n_rows":17,"n_cols":7,"rows_kept":17,"cut":false,"hidden":false,"merged":[[0,0,0,6],[1,0,1,6],[2,0,2,6]]}
["ALLEGATO D"]
["MODULO DI PRESENTAZIONE DELL'OFFERTA ECONOMICA"]
["LOTTO 4 – CARNE INSACCATA"]
[]
["Il sottoscritto _____________________________________________ in qualità di legale rappresentante o persona munita di idonea procura (già allegata alla dichiarazione"]
["di cui all'Allegato B al bando di gara) dell'impresa/ATI __________________________________________________________________________________ con sede legale a"]
["_____________________________________ in _____________________________________________________ n. _______ P.IVA/COE _________________________"]
[]
["dichiara di presentare la seguente offerta economica, che sottoscrive in calce ad ogni sua pagina, in relazione alle quantità indicate dei prodotti costituenti il lotto"]
["di gara, proponendo i seguenti prezzi unitari (cioè riferiti alle unità di misura - U.M. - specificate in tabella), espressi in euro sia in cifre sia in lettere."]
[]
["COD.","DESCRIZIONE PRODOTTO","U.M.","QUANTITÀ","PREZZO UNITARIO (EURO) IN CIFRE","PREZZO UNITARIO (EURO) IN LETTERE","IMPORTO\nCOMPLESSIVO\nIN CIFRE"]
["4.1","Prosciutto cotto","Kg",900,0,{"$f":"valoreinlettere(E13)","v":"zero/00"},{"$f":"D13*E13","v":0}]
["4.2","Prosciutto cotto in tranci da 3/4 Kg","Kg",1000,0,{"$f":"valoreinlettere(E14)","v":"zero/00"},{"$f":"D14*E14","v":0}]
["4.3","Prosciutto crudo di Parma","Kg",800,0,"zero/00",0]
["4.4","Prosciutto crudo di Parma in tranci da 3/4 Kg","Kg",800,0,{"$f":"valoreinlettere(E16)","v":"zero/00"},{"$f":"D16*E16","v":0}]
[null,null,null,null,null,"IMPORTO COMPLESSIVO DEL LOTTO  >",{"$f":"SUM(G13:G16)","v":0}]

{"sheet":"L5 Ortofrutta","index":4,"n_rows":86,"n_cols":7,"rows_kept":86,"cut":false,"hidden":false,"merged":[[0,0,0,6],[1,0,1,6],[2,0,2,6]]}
["ALLEGATO D"]
["MODULO DI PRESENTAZIONE DELL'OFFERTA ECONOMICA"]
["LOTTO 5 – PRODOTTI ORTOFRUTTICOLI FRESCHI"]
[]
["Il sottoscritto _____________________________________________ in qualità di legale rappresentante o persona munita di idonea procura (già allegata alla dichiarazione"]
["di cui all'Allegato B al bando di gara) dell'impresa/ATI __________________________________________________________________________________ con sede legale a"]
["_____________________________________ in _____________________________________________________ n. _______ P.IVA/COE _________________________"]
[]
["dichiara di presentare il seguente ricarico percentuale, unico ed uguale per tutti i prodotti del lotto, rispetto ai prezzi unitari prevalenti indicati nel listino"]
["giornaliero, senza IVA, del mercato ortofrutticolo all'ingrosso di Rimini (c/o C.A.A.R. Centro Agro-Alimentare Riminese S.p.A., Via Emilia Vecchia 75 - Rimini)."]
[]
["RICARICO PERCENTUALE IN CIFRE:  ______________ %"]
[]
["RICARICO PERCENTUALE IN LETTERE:  __________________________________________ per cento"]
[]
["Altresì dichiara di offrire, in relazione alle quantità indicate dei prodotti costituenti il lotto di gara, i seguenti prezzi unitari standard di riferimento, già comprensivi"]
["del ricarico percentuale di cui sopra, che l'impresa si impegna sin d'ora ad applicare in sede di fatturazione qualora un prodotto, ancorché richiesto e fornito,"]
["non risulti disponibile, anche solo temporaneamente, nel listino giornaliero del mercato ortofrutticolo all'ingrosso di Rimini."]
["I prezzi unitari (cioè riferiti alle unità di misura - U.M. - specificate in tabella), vanno espressi in euro sia in cifre sia in lettere."]
["Dichiara, infine, di aver calcolato il valore della cauzione provvisoria in ragione del 2% dell'importo ottenuto sommando tra loro i prodotti delle quantità richieste"]
["delle singole varietà ortofrutticole per i prezzi unitari standard di riferimento di seguito riportati."]
[]
["COD.","DESCRIZIONE PRODOTTO","U.M.","QUANTITÀ","PREZZO UNITARIO (EURO) IN CIFRE","PREZZO UNITARIO (EURO) IN LETTERE","IMPORTO\nCOMPLESSIVO\nIN CIFRE"]
["5.1","ALBICOCCHE","KG",900,0,{"$f":"valoreinlettere(E24)","v":"zero/00"},{"$f":"D24*E24","v":0}]
["5.2","ANANAS","KG",2500,0,{"$f":"valoreinlettere(E25)","v":"zero/00"},{"$f":"D25*E25","v":0}]
["5.3","ARANCE","KG",8500,0,{"$f":"valoreinlettere(E26)","v":"zero/00"},{"$f":"D26*E26","v":0}]
["5.4","BANANE","KG",20000,0,{"$f":"valoreinlettere(E27)","v":"zero/00"},{"$f":"D27*E27","v":0}]
["5.5","CACHI","KG",220,0,{"$f":"valoreinlettere(E28)","v":"zero/00"},{"$f":"D28*E28","v":0}]
["5.6","CASTAGNE","KG",250,0,{"$f":"valoreinlettere(E29)","v":"zero/00"},{"$f":"D29*E29","v":0}]
["5.7","CILIEGIE","KG",600,0,{"$f":"valoreinlettere(E30)","v":"zero/00"},{"$f":"D30*E30","v":0}]
["5.8","CLEMENTINE","KG",2700,0,{"$f":"valoreinlettere(E31)","v":"zero/00"},{"$f":"D31*E31","v":0}]
["5.9","COCOMERI","KG",3000,0,{"$f":"valoreinlettere(E32)","v":"zero/00"},{"$f":"D32*E32","v":0}]
["5.10","FRAGOLE","KG",2000,0,{"$f":"valoreinlettere(E33)","v":"zero/00"},{"$f":"D33*E33","v":0}]
["5.11","KIWI","KG",3500,0,{"$f":"valoreinlettere(E34)","v":"zero/00"},{"$f":"D34*E34","v":0}]
["5.12","LIMONI","KG",1000,0,{"$f":"valoreinlettere(E35)","v":"zero/00"},{"$f":"D35*E35","v":0}]
["5.13","MANDARINI","KG",500,0,{"$f":"valoreinlettere(E36)","v":"zero/00"},{"$f":"D36*E36","v":0}]
["5.14","MELE (FUJI, GOLDEN DELICIOUS)","KG",18500,0,{"$f":"valoreinlettere(E37)","v":"zero/00"},{"$f":"D37*E37","v":0}]
["5.15","MELONI","KG",4500,0,{"$f":"valoreinlettere(E38)","v":"zero/00"},{"$f":"D38*E38","v":0}]
["5.16","PERE (ABATE FÉTEL, CONFERENCE, WILLIAM)","KG",6500,0,{"$f":"valoreinlettere(E39)","v":"zero/00"},{"$f":"D39*E39","v":0}]
["5.17","PESCHE","KG",1500,0,{"$f":"valoreinlettere(E40)","v":"zero/00"},{"$f":"D40*E40","v":0}]
["5.18","SUSINE","KG",1300,0,{"$f":"valoreinlettere(E41)","v":"zero/00"},{"$f":"D41*E41","v":0}]
["5.19","UVA","KG",1500,0,{"$f":"valoreinlettere(E42)","v":"zero/00"},{"$f":"D42*E42","v":0}]
["5.20","AGLIO SECCO","KG",80,0,{"$f":"valoreinlettere(E43)","v":"zero/00"},{"$f":"D43*E43","v":0}]
["5.21","ASPARAGI","KG",820,0,{"$f":"valoreinlettere(E44)","v":"zero/00"},{"$f":"D44*E44","v":0}]
["5.22","BASILICO IN MAZZI","PZ",1950,0,{"$f":"valoreinlettere(E45)","v":"zero/00"},{"$f":"D45*E45","v":0}]
["5.23","BIETOLE DA COSTA","KG",900,0,{"$f":"valoreinlettere(E46)","v":"zero/00"},{"$f":"D46*E46","v":0}]
["5.24","BROCCOLETTI","KG",700,0,{"$f":"valoreinlettere(E47)","v":"zero/00"},{"$f":"D47*E47","v":0}]
["5.25","CARCIOFI","PZ",1700,0,{"$f":"valoreinlettere(E48)","v":"zero/00"},{"$f":"D48*E48","v":0}]
["5.26","CARDI","KG",50,0,{"$f":"valoreinlettere(E49)","v":"zero/00"},{"$f":"D49*E49","v":0}]
["5.27","CAROTE","KG",14000,0,{"$f":"valoreinlettere(E50)","v":"zero/00"},{"$f":"D50*E50","v":0}]
["5.28","CAVOLFIORI BIANCHI","KG",3400,0,{"$f":"valoreinlettere(E51)","v":"zero/00"},{"$f":"D51*E51","v":0}]
["5.29","CAVOLINI DI BRUXELLES","KG",100,0,{"$f":"valoreinlettere(E52)","v":"zero/00"},{"$f":"D52*E52","v":0}]
["5.30","CAVOLO VERZA","KG",800,0,{"$f":"valoreinlettere(E53)","v":"zero/00"},{"$f":"D53*E53","v":0}]
["5.31","CAVOLO CAPPUCCIO BIANCO","KG",1250,0,{"$f":"valoreinlettere(E54)","v":"zero/00"},{"$f":"D54*E54","v":0}]
["5.32","CAVOLO CAPPUCCIO ROSSO","KG",540,0,{"$f":"valoreinlettere(E55)","v":"zero/00"},{"$f":"D55*E55","v":0}]
["5.33","CETRIOLI","KG",3200,0,{"$f":"valoreinlettere(E56)","v":"zero/00"},{"$f":"D56*E56","v":0}]
["5.34","CICORIA","KG",50,0,{"$f":"valoreinlettere(E57)","v":"zero/00"},{"$f":"D57*E57","v":0}]
["5.35","CIPOLLA BIANCA","KG",1300,0,{"$f":"valoreinlettere(E58)","v":"zero/00"},{"$f":"D58*E58","v":0}]
["5.36","CIPOLLA DORATA","KG",650,0,{"$f":"valoreinlettere(E59)","v":"zero/00"},{"$f":"D59*E59","v":0}]
["5.37","ERBE AROMATICHE IN MAZZI","PZ",550,0,{"$f":"valoreinlettere(E60)","v":"zero/00"},{"$f":"D60*E60","v":0}]
["5.38","FAGIOLINI","KG",350,0,{"$f":"valoreinlettere(E61)","v":"zero/00"},{"$f":"D61*E61","v":0}]
["5.39","FINOCCHIO","KG",8500,0,{"$f":"valoreinlettere(E62)","v":"zero/00"},{"$f":"D62*E62","v":0}]
["5.40","FINOCCHIO SELVATICO IN MAZZI","PZ",250,0,{"$f":"valoreinlettere(E63)","v":"zero/00"},{"$f":"D63*E63","v":0}]
["5.41","FUNGHI PRATAIOLI COLTIVATI","KG",800,0,{"$f":"valoreinlettere(E64)","v":"zero/00"},{"$f":"D64*E64","v":0}]
["5.42","INSALATA (VARI TIPI)","KG",5000,0,{"$f":"valoreinlettere(E65)","v":"zero/00"},{"$f":"D65*E65","v":0}]
["5.43","LISCHI","KG",70,0,{"$f":"valoreinlettere(E66)","v":"zero/00"},{"$f":"D66*E66","v":0}]
["5.44","MELANZANE LUNGHE","KG",350,0,{"$f":"valoreinlettere(E67)","v":"zero/00"},{"$f":"D67*E67","v":0}]
["5.45","MELANZANE TONDE","KG",350,0,{"$f":"valoreinlettere(E68)","v":"zero/00"},{"$f":"D68*E68","v":0}]
["5.46","PATATE","KG",20500,0,{"$f":"valoreinlettere(E69)","v":"zero/00"},{"$f":"D69*E69","v":0}]
["5.47","PEPERONI","KG",820,0,{"$f":"valoreinlettere(E70)","v":"zero/00"},{"$f":"D70*E70","v":0}]
["5.48","POMODORI (VARI TIPI)","KG",6000,0,{"$f":"valoreinlettere(E71)","v":"zero/00"},{"$f":"D71*E71","v":0}]
["5.49","PORRI","KG",1300,0,{"$f":"valoreinlettere(E72)","v":"zero/00"},{"$f":"D72*E72","v":0}]
["5.50","PREZZEMOLO","KG",250,0,{"$f":"valoreinlettere(E73)","v":"zero/00"},{"$f":"D73*E73","v":0}]
["5.51","RADICCHIO ROSSO","KG",550,0,{"$f":"valoreinlettere(E74)","v":"zero/00"},{"$f":"D74*E74","v":0}]
["5.52","RAPE ROSSE COTTE","KG",250,0,{"$f":"valoreinlettere(E75)","v":"zero/00"},{"$f":"D75*E75","v":0}]
["5.53","RAVANELLI IN MAZZI","PZ",500,0,{"$f":"valoreinlettere(E76)","v":"zero/00"},{"$f":"D76*E76","v":0}]
["5.54","ROSMARINO IN MAZZI","PZ",1400,0,{"$f":"valoreinlettere(E77)","v":"zero/00"},{"$f":"D77*E77","v":0}]
["5.55","RUCOLA IN MAZZI","PZ",1800,0,{"$f":"valoreinlettere(E78)","v":"zero/00"},{"$f":"D78*E78","v":0}]
["5.56","SALVIA IN MAZZI","PZ",630,0,{"$f":"valoreinlettere(E79)","v":"zero/00"},{"$f":"D79*E79","v":0}]
["5.57","SCALOGNO IN CONFEZIONI DA 250 GRAMMI","PZ",100,0,{"$f":"valoreinlettere(E80)","v":"zero/00"},{"$f":"D80*E80","v":0}]
["5.58","SEDANO VERDE","KG",2100,0,{"$f":"valoreinlettere(E81)","v":"zero/00"},{"$f":"D81*E81","v":0}]
["5.59","SEDANO RAPA","KG",100,0,{"$f":"valoreinlettere(E82)","v":"zero/00"},{"$f":"D82*E82","v":0}]
["5.60","SPINACI","KG",400,0,{"$f":"valoreinlettere(E83)","v":"zero/00"},{"$f":"D83*E83","v":0}]
["5.61","ZUCCHE GIALLE","KG",600,0,{"$f":"valoreinlettere(E84)","v":"zero/00"},{"$f":"D84*E84","v":0}]
["5.62","ZUCCHINE","KG",6500,0,{"$f":"valoreinlettere(E85)","v":"zero/00"},{"$f":"D85*E85","v":0}]
[null,null,null,null,null,"IMPORTO COMPLESSIVO DEL LOTTO  >",{"$f":"SUM(G24:G85)","v":0}]

{"sheet":"L6 Alimentari","index":5,"n_rows":93,"n_cols":7,"rows_kept":93,"cut":false,"hidden":false,"merged":[[0,0,0,6],[1,0,1,6],[2,0,2,6]]}
["ALLEGATO D"]
["MODULO DI PRESENTAZIONE DELL'OFFERTA ECONOMICA"]
["LOTTO 6 – GENERI ALIMENTARI VARI"]
[]
["Il sottoscritto _____________________________________________ in qualità di legale rappresentante o persona munita di idonea procura (già allegata alla dichiarazione"]
["di cui all'Allegato B al bando di gara) dell'impresa/ATI __________________________________________________________________________________ con sede legale a"]
["_____________________________________ in _____________________________________________________ n. _______ P.IVA/COE _________________________"]
[]
["dichiara di presentare la seguente offerta economica, che sottoscrive in calce ad ogni sua pagina, in relazione alle quantità indicate dei prodotti costituenti il lotto"]
["di gara, proponendo i seguenti prezzi unitari (cioè riferiti alle unità di misura - U.M. - specificate in tabella), espressi in euro sia in cifre sia in lettere."]
[]
["COD.","DESCRIZIONE PRODOTTO","U.M.","QUANTITÀ","PREZZO UNITARIO (EURO) IN CIFRE","PREZZO UNITARIO (EURO) IN LETTERE","IMPORTO\nCOMPLESSIVO\nIN CIFRE"]
["6.1","Aceto bianco di vino, confezione da 1 litro","Litri",3900,0,{"$f":"valoreinlettere(E13)","v":"zero/00"},{"$f":"D13*E13","v":0}]
["6.2","B - Aceto di mele biologico, confezione da 500 ml","Litri",200,0,{"$f":"valoreinlettere(E14)","v":"zero/00"},{"$f":"D14*E14","v":0}]
["6.3","Bicarbonato","Kg",250,0,{"$f":"valoreinlettere(E15)","v":"zero/00"},{"$f":"D15*E15","v":0}]
["6.4","B - Biscotti frollini biologici porzionati","Kg",500,0,{"$f":"valoreinlettere(E16)","v":"zero/00"},{"$f":"D16*E16","v":0}]
["6.5","SG/B - Biscotti frollini biologici senza glutine","Kg",20,0,{"$f":"valoreinlettere(E17)","v":"zero/00"},{"$f":"D17*E17","v":0}]
["6.6","SL/B - Biscotti frollini biologici senza latte","Kg",25,0,{"$f":"valoreinlettere(E18)","v":"zero/00"},{"$f":"D18*E18","v":0}]
["6.7","B - Biscotti prima infanzia biologici (anche granulati)","Kg",15,0,{"$f":"valoreinlettere(E19)","v":"zero/00"},{"$f":"D19*E19","v":0}]
["6.8","PB - Biscotti secchi preferibilmente biologici, porzionati","Kg",500,0,{"$f":"valoreinlettere(E20)","v":"zero/00"},{"$f":"D20*E20","v":0}]
["6.9","Cacao amaro in polvere","Kg",10,0,{"$f":"valoreinlettere(E21)","v":"zero/00"},{"$f":"D21*E21","v":0}]
["6.10","B - Caffè d'orzo biologico solubile","Kg",12,0,{"$f":"valoreinlettere(E22)","v":"zero/00"},{"$f":"D22*E22","v":0}]
["6.11","PB - Carciofini preferibilmente biologici sott'olio","Kg",80,0,{"$f":"valoreinlettere(E23)","v":"zero/00"},{"$f":"D23*E23","v":0}]
["6.12","B - Ceci secchi biologici","Kg",415,0,{"$f":"valoreinlettere(E24)","v":"zero/00"},{"$f":"D24*E24","v":0}]
["6.13","PB - Fiocchi di cereali preferibil. biolog. al naturale, in monoporzioni","Kg",500,0,{"$f":"valoreinlettere(E25)","v":"zero/00"},{"$f":"D25*E25","v":0}]
["6.14","Codette decorative assortite","Kg",10,0,{"$f":"valoreinlettere(E26)","v":"zero/00"},{"$f":"D26*E26","v":0}]
["6.15","Confezioni monodose con 2 fette biscottate","Nr",28200,0,{"$f":"valoreinlettere(E27)","v":"zero/00"},{"$f":"D27*E27","v":0}]
["6.16","B - Corn flakes biologici","Kg",200,0,{"$f":"valoreinlettere(E28)","v":"zero/00"},{"$f":"D28*E28","v":0}]
["6.17","SG/B - Corn flakes biologici senza glutine","Kg",20,0,{"$f":"valoreinlettere(E29)","v":"zero/00"},{"$f":"D29*E29","v":0}]
["6.18","SG - Crackers senza glutine","Kg",15,0,{"$f":"valoreinlettere(E30)","v":"zero/00"},{"$f":"D30*E30","v":0}]
["6.19","B - Fagioli borlotti secchi biologici","Kg",160,0,{"$f":"valoreinlettere(E31)","v":"zero/00"},{"$f":"D31*E31","v":0}]
["6.20","B - Fagioli cannellini secchi biologici","Kg",450,0,{"$f":"valoreinlettere(E32)","v":"zero/00"},{"$f":"D32*E32","v":0}]
["6.21","Farina di grano tenero “0” “Terra di San Marino”, confezione 1 kg","Kg",900,0,{"$f":"valoreinlettere(E33)","v":"zero/00"},{"$f":"D33*E33","v":0}]
["6.22","Farina di grano tenero “0” “Terra di San Marino”, confezione 5 kg","Kg",2800,0,{"$f":"valoreinlettere(E34)","v":"zero/00"},{"$f":"D34*E34","v":0}]
["6.23","Farina di grano tenero “00” “Terra di San Marino”, confezione 1 kg","Kg",1000,0,{"$f":"valoreinlettere(E35)","v":"zero/00"},{"$f":"D35*E35","v":0}]
["6.24","Farina di grano tenero “00” “Terra di San Marino”, confezione 5 kg","Kg",1700,0,{"$f":"valoreinlettere(E36)","v":"zero/00"},{"$f":"D36*E36","v":0}]
["6.25","Farina di grano tenero “0”, confezione da 5 kg","Kg",750,0,{"$f":"valoreinlettere(E37)","v":"zero/00"},{"$f":"D37*E37","v":0}]
["6.26","Farina di grano tenero semintegrale, confezione da 5 kg","Kg",1850,0,{"$f":"valoreinlettere(E38)","v":"zero/00"},{"$f":"D38*E38","v":0}]
["6.27","Farina di grano tenero “00” per dolci","Kg",650,0,{"$f":"valoreinlettere(E39)","v":"zero/00"},{"$f":"D39*E39","v":0}]
["6.28","SG/PB - Farina di mais preferibilmente biologica","Kg",20,0,{"$f":"valoreinlettere(E40)","v":"zero/00"},{"$f":"D40*E40","v":0}]
["6.29","SG/PB - Farina di mais preferibilmente biologica precotta","Kg",100,0,{"$f":"valoreinlettere(E41)","v":"zero/00"},{"$f":"D41*E41","v":0}]
["6.30","B - Farro perlato secco biologico","Kg",300,0,{"$f":"valoreinlettere(E42)","v":"zero/00"},{"$f":"D42*E42","v":0}]
["6.31","Fecola di patate","Kg",12,0,{"$f":"valoreinlettere(E43)","v":"zero/00"},{"$f":"D43*E43","v":0}]
["6.32","PB - Fette biscottate preferibilmente biologiche","Kg",150,0,{"$f":"valoreinlettere(E44)","v":"zero/00"},{"$f":"D44*E44","v":0}]
["6.33","SL/PB - Fette biscottate preferibilmente biologiche senza latte","Kg",5,0,{"$f":"valoreinlettere(E45)","v":"zero/00"},{"$f":"D45*E45","v":0}]
["6.34","SG/PB - Fette biscottate preferibil. biologiche senza glutine","Kg",18,0,{"$f":"valoreinlettere(E46)","v":"zero/00"},{"$f":"D46*E46","v":0}]
["6.35","PB - Filtri di camomilla preferibilmente biologica setacciata","Nr",2800,0,{"$f":"valoreinlettere(E47)","v":"zero/00"},{"$f":"D47*E47","v":0}]
["6.36","PB - Filtri di infuso preferibil. biologico ai fiori di ibisco (karkadè)","Nr",1340,0,{"$f":"valoreinlettere(E48)","v":"zero/00"},{"$f":"D48*E48","v":0}]
["6.37","B - Filtri di tè nero biologico","Nr",5500,0,{"$f":"valoreinlettere(E49)","v":"zero/00"},{"$f":"D49*E49","v":0}]
["6.38","PB - Funghi preferibilmente biologici sott'olio","Kg",40,0,{"$f":"valoreinlettere(E50)","v":"zero/00"},{"$f":"D50*E50","v":0}]
["6.39","Gocce di cioccolato fondente","Kg",35,0,{"$f":"valoreinlettere(E51)","v":"zero/00"},{"$f":"D51*E51","v":0}]
["6.40","SL/B - Latte di soia biologico, confezione da 500 ml","Litri",150,0,{"$f":"valoreinlettere(E52)","v":"zero/00"},{"$f":"D52*E52","v":0}]
["6.41","B - Lenticchie mignon secche biologiche","Kg",275,0,{"$f":"valoreinlettere(E53)","v":"zero/00"},{"$f":"D53*E53","v":0}]
["6.42","Lievito per pizza","Kg",10,0,{"$f":"valoreinlettere(E54)","v":"zero/00"},{"$f":"D54*E54","v":0}]
["6.43","Lievito vaniglinato per dolci","Kg",40,0,{"$f":"valoreinlettere(E55)","v":"zero/00"},{"$f":"D55*E55","v":0}]
["6.44","Maizena","Kg",10,0,{"$f":"valoreinlettere(E56)","v":"zero/00"},{"$f":"D56*E56","v":0}]
["6.45","B - Marmellata biologica","Kg",310,0,{"$f":"valoreinlettere(E57)","v":"zero/00"},{"$f":"D57*E57","v":0}]
["6.46","Miele “Terra di San Marino”, confezione da 0,5 kg","Kg",150,0,{"$f":"valoreinlettere(E58)","v":"zero/00"},{"$f":"D58*E58","v":0}]
["6.47","Miele “Terra di San Marino”, confezione da 1 kg","Kg",50,0,{"$f":"valoreinlettere(E59)","v":"zero/00"},{"$f":"D59*E59","v":0}]
["6.48","Monoporzioni di miele in vaschette da 20 g","Nr",8000,0,{"$f":"valoreinlettere(E60)","v":"zero/00"},{"$f":"D60*E60","v":0}]
["6.49","B - Miglio decorticato biologico","Kg",30,0,{"$f":"valoreinlettere(E61)","v":"zero/00"},{"$f":"D61*E61","v":0}]
["6.50","SG/PB - Mini grissini preferibilmente biologici senza glutine","Kg",16,0,{"$f":"valoreinlettere(E62)","v":"zero/00"},{"$f":"D62*E62","v":0}]
["6.51","PB - Monoporzioni di marmellata preferibilmente biologica","Nr",10000,0,{"$f":"valoreinlettere(E63)","v":"zero/00"},{"$f":"D63*E63","v":0}]
["6.52","PB - Noci preferibilmente biologiche sgusciate","Kg",30,0,{"$f":"valoreinlettere(E64)","v":"zero/00"},{"$f":"D64*E64","v":0}]
["6.53","PB - Olio di semi di arachide preferibilmente biologico","Litri",200,0,{"$f":"valoreinlettere(E65)","v":"zero/00"},{"$f":"D65*E65","v":0}]
["6.54","PB - Olio di semi di girasole preferibilmente biologico","Litri",330,0,{"$f":"valoreinlettere(E66)","v":"zero/00"},{"$f":"D66*E66","v":0}]
["6.55","PB - Olive nere in salamoia preferibilmente biologiche denocciolate","Kg",515,0,{"$f":"valoreinlettere(E67)","v":"zero/00"},{"$f":"D67*E67","v":0}]
["6.56","PB - Olive verdi in salamoia preferibilmente biologiche denocciolate","Kg",100,0,{"$f":"valoreinlettere(E68)","v":"zero/00"},{"$f":"D68*E68","v":0}]
["6.57","B - Omogeneizzato biologico di carne e pesce, con verdure","Kg",5,0,{"$f":"valoreinlettere(E69)","v":"zero/00"},{"$f":"D69*E69","v":0}]
["6.58","B - Omogeneizzato biologico di frutta","Kg",35,0,{"$f":"valoreinlettere(E70)","v":"zero/00"},{"$f":"D70*E70","v":0}]
["6.59","Origano (foglie) ","Kg",5,0,{"$f":"valoreinlettere(E71)","v":"zero/00"},{"$f":"D71*E71","v":0}]
["6.60","B - Orzo perlato secco biologico","Kg",375,0,{"$f":"valoreinlettere(E72)","v":"zero/00"},{"$f":"D72*E72","v":0}]
["6.61","SG - Pane a fette senza glutine ","Kg",55,0,{"$f":"valoreinlettere(E73)","v":"zero/00"},{"$f":"D73*E73","v":0}]
["6.62","SG - Pangrattato senza glutine","Kg",60,0,{"$f":"valoreinlettere(E74)","v":"zero/00"},{"$f":"D74*E74","v":0}]
["6.63","SG/PB - Panini c/olio extrav. oliva, s/glutine, preferibil. biolog.","Kg",20,0,{"$f":"valoreinlettere(E75)","v":"zero/00"},{"$f":"D75*E75","v":0}]
["6.64","B - Passata di pomodoro biologica","Kg",13500,0,{"$f":"valoreinlettere(E76)","v":"zero/00"},{"$f":"D76*E76","v":0}]
["6.65","SG - Pasta di mais e riso senza glutine (vari formati)","Kg",180,0,{"$f":"valoreinlettere(E77)","v":"zero/00"},{"$f":"D77*E77","v":0}]
["6.66","SG - Pasta di solo mais senza glutine (vari formati)","Kg",170,0,{"$f":"valoreinlettere(E78)","v":"zero/00"},{"$f":"D78*E78","v":0}]
["6.67","B - Pasta di semola semintegr. biologica di grano duro (vari formati)","Kg",20500,0,{"$f":"valoreinlettere(E79)","v":"zero/00"},{"$f":"D79*E79","v":0}]
["6.68","B - Pastina all'uovo biologica (vari formati)","Kg",650,0,{"$f":"valoreinlettere(E80)","v":"zero/00"},{"$f":"D80*E80","v":0}]
["6.69","B - Pastina semintegrale biologica di grano duro (vari formati)","Kg",20,0,{"$f":"valoreinlettere(E81)","v":"zero/00"},{"$f":"D81*E81","v":0}]
["6.70","Pinoli sgusciati","Kg",20,0,{"$f":"valoreinlettere(E82)","v":"zero/00"},{"$f":"D82*E82","v":0}]
["6.71","B - Polpa di pomodoro biologica","Kg",420,0,{"$f":"valoreinlettere(E83)","v":"zero/00"},{"$f":"D83*E83","v":0}]
["6.72","B - Pomodori pelati biologici","Kg",300,0,{"$f":"valoreinlettere(E84)","v":"zero/00"},{"$f":"D84*E84","v":0}]
["6.73","SG - Preparato per pane/pizza/pasta/dolci senza glutine","Kg",150,0,{"$f":"valoreinlettere(E85)","v":"zero/00"},{"$f":"D85*E85","v":0}]
["6.74","Preparato solubile a base di cacao","Kg",15,0,{"$f":"valoreinlettere(E86)","v":"zero/00"},{"$f":"D86*E86","v":0}]
["6.75","PB - Riso arborio preferibilmente biologico, confezione da 1 kg","Kg",6500,0,{"$f":"valoreinlettere(E87)","v":"zero/00"},{"$f":"D87*E87","v":0}]
["6.76","B - Riso ribe biologico, confezione da 0,5 kg","Kg",100,0,{"$f":"valoreinlettere(E88)","v":"zero/00"},{"$f":"D88*E88","v":0}]
["6.77","Tonno all'olio di oliva","Kg",2000,0,{"$f":"valoreinlettere(E89)","v":"zero/00"},{"$f":"D89*E89","v":0}]
["6.78","Uva sultanina","Kg",25,0,{"$f":"valoreinlettere(E90)","v":"zero/00"},{"$f":"D90*E90","v":0}]
["6.79","SL/PB - Yogurt latte di soia pref. bio., frutta/gusti vari, conf. 2x125g","Nr",700,0,{"$f":"valoreinlettere(E91)","v":"zero/00"},{"$f":"D91*E91","v":0}]
["6.80","Zucchero, confezione da 1 kg","Kg",700,0,{"$f":"valoreinlettere(E92)","v":"zero/00"},{"$f":"D92*E92","v":0}]
[null,null,null,null,null,"IMPORTO COMPLESSIVO DEL LOTTO  >",{"$f":"SUM(G13:G92)","v":0}]

{"sheet":"L7 Latticini","index":6,"n_rows":24,"n_cols":7,"rows_kept":24,"cut":false,"hidden":false,"merged":[[0,0,0,6],[1,0,1,6],[2,0,2,6]]}
["ALLEGATO D"]
["MODULO DI PRESENTAZIONE DELL'OFFERTA ECONOMICA"]
["LOTTO 7 – LATTICINI"]
[]
["Il sottoscritto _____________________________________________ in qualità di legale rappresentante o persona munita di idonea procura (già allegata alla dichiarazione"]
["di cui all'Allegato B al bando di gara) dell'impresa/ATI __________________________________________________________________________________ con sede legale a"]
["_____________________________________ in _____________________________________________________ n. _______ P.IVA/COE _________________________"]
[]
["dichiara di presentare la seguente offerta economica, che sottoscrive in calce ad ogni sua pagina, in relazione alle quantità indicate dei prodotti costituenti il lotto"]
["di gara, proponendo i seguenti prezzi unitari (cioè riferiti alle unità di misura - U.M. - specificate in tabella), espressi in euro sia in cifre sia in lettere."]
[]
["COD.","DESCRIZIONE PRODOTTO","U.M.","QUANTITÀ","PREZZO UNITARIO (EURO) IN CIFRE","PREZZO UNITARIO (EURO) IN LETTERE","IMPORTO\nCOMPLESSIVO\nIN CIFRE"]
["7.1","Latte fresco pastorizzato intero (confezione da 1 litro)","Litri",3000,0,{"$f":"valoreinlettere(E13)","v":"zero/00"},{"$f":"D13*E13","v":0}]
["7.2","Latte UHT intero (confezione da 1 litro)","Litri",1800,0,"zero/00",0]
["7.3","Latte UHT parzialmente scremato (confezione da 1 litro)","Litri",1000,0,"zero/00",0]
["7.4","Burro in confezioni da 250 grammi","Kg",500,0,{"$f":"valoreinlettere(E16)","v":"zero/00"},{"$f":"D16*E16","v":0}]
["7.5","Mozzarella","Kg",200,0,{"$f":"valoreinlettere(E17)","v":"zero/00"},{"$f":"D17*E17","v":0}]
["7.6","Formaggio Edamer","Kg",750,0,{"$f":"valoreinlettere(E18)","v":"zero/00"},{"$f":"D18*E18","v":0}]
["7.7","Ciliegie di mozzarella","Kg",190,0,{"$f":"valoreinlettere(E19)","v":"zero/00"},{"$f":"D19*E19","v":0}]
["7.8","Mozzarella taglio julienne, in vaschetta da 2,5 kg","Kg",2080,0,{"$f":"valoreinlettere(E20)","v":"zero/00"},{"$f":"D20*E20","v":0}]
["7.9","Parmigiano Reggiano, stagionato almeno 24 mesi","Kg",4250,0,{"$f":"valoreinlettere(E21)","v":"zero/00"},{"$f":"D21*E21","v":0}]
["7.10","Yogurt alla frutta, in confezione da 2 vasetti da 125 g","Conf.",50000,0,{"$f":"valoreinlettere(E22)","v":"zero/00"},{"$f":"D22*E22","v":0}]
["7.11","Yogurt magro, in confezione da 2 vasetti da 125 g","Conf.",500,0,{"$f":"valoreinlettere(E23)","v":"zero/00"},{"$f":"D23*E23","v":0}]
[null,null,null,null,null,"IMPORTO COMPLESSIVO DEL LOTTO  >",{"$f":"SUM(G16:G23)","v":0}]

{"sheet":"L8 Uova","index":7,"n_rows":14,"n_cols":7,"rows_kept":14,"cut":false,"hidden":false,"merged":[[0,0,0,6],[1,0,1,6],[2,0,2,6]]}
["ALLEGATO D"]
["MODULO DI PRESENTAZIONE DELL'OFFERTA ECONOMICA"]
["LOTTO 8 – UOVA DI GALLINA"]
[]
["Il sottoscritto _____________________________________________ in qualità di legale rappresentante o persona munita di idonea procura (già allegata alla dichiarazione"]
["di cui all'Allegato B al bando di gara) dell'impresa/ATI __________________________________________________________________________________ con sede legale a"]
["_____________________________________ in _____________________________________________________ n. _______ P.IVA/COE _________________________"]
[]
["dichiara di presentare la seguente offerta economica, che sottoscrive in calce ad ogni sua pagina, in relazione alle quantità indicate dei prodotti costituenti il lotto"]
["di gara, proponendo i seguenti prezzi unitari (cioè riferiti alle unità di misura - U.M. - specificate in tabella), espressi in euro sia in cifre sia in lettere."]
[]
[null,"DESCRIZIONE PRODOTTO","U.M.","QUANTITÀ","PREZZO UNITARIO (EURO) IN CIFRE","PREZZO UNITARIO (EURO) IN LETTERE","IMPORTO COMPLESSIVO\n(EURO) IN CIFRE"]
["8.1","Uova di gallina, categoria A, classe M, da 53/63 g","pezzi",110000,0,{"$f":"valoreinlettere(E13)","v":"zero/00"},{"$f":"D13*E13","v":0}]
[null,null,null,null,null,"IMPORTO COMPLESSIVO DEL LOTTO  >",{"$f":"SUM(G13:G13)","v":0}]

{"sheet":"L9 Olio","index":8,"n_rows":14,"n_cols":7,"rows_kept":14,"cut":false,"hidden":false,"merged":[[0,0,0,6],[1,0,1,6],[2,0,2,6]]}
["ALLEGATO D"]
["MODULO DI PRESENTAZIONE DELL'OFFERTA ECONOMICA"]
["LOTTO 9 – OLIO EXTRAVERGINE DI OLIVA"]
[]
["Il sottoscritto _____________________________________________ in qualità di legale rappresentante o persona munita di idonea procura (già allegata alla dichiarazione"]
["di cui all'Allegato B al bando di gara) dell'impresa/ATI __________________________________________________________________________________ con sede legale a"]
["_____________________________________ in _____________________________________________________ n. _______ P.IVA/COE _________________________"]
[]
["dichiara di presentare la seguente offerta economica, che sottoscrive in calce ad ogni sua pagina, in relazione alle quantità indicate dei prodotti costituenti il lotto"]
["di gara, proponendo i seguenti prezzi unitari (cioè riferiti alle unità di misura - U.M. - specificate in tabella), espressi in euro sia in cifre sia in lettere."]
[]
["COD.","DESCRIZIONE PRODOTTO","U.M.","QUANTITÀ","PREZZO UNITARIO (EURO) IN CIFRE","PREZZO UNITARIO (EURO) IN LETTERE","IMPORTO\nCOMPLESSIVO\nIN CIFRE"]
["9.1","Olio extravergine di oliva","Litri",4500,0,{"$f":"valoreinlettere(E13)","v":"zero/00"},{"$f":"D13*E13","v":0}]
[null,null,null,null,null,"IMPORTO COMPLESSIVO DEL LOTTO  >",{"$f":"SUM(G13:G13)","v":0}]

{"sheet":"L10 Pane","index":9,"n_rows":21,"n_cols":7,"rows_kept":21,"cut":false,"hidden":false,"merged":[[0,0,0,6],[1,0,1,6],[2,0,2,6]]}
["ALLEGATO D"]
["MODULO DI PRESENTAZIONE DELL'OFFERTA ECONOMICA"]
["LOTTO 10 – PANE"]
[]
["Il sottoscritto _____________________________________________ in qualità di legale rappresentante o persona munita di idonea procura (già allegata alla dichiarazione"]
["di cui all'Allegato B al bando di gara) dell'impresa/ATI __________________________________________________________________________________ con sede legale a"]
["_____________________________________ in _____________________________________________________ n. _______ P.IVA/COE _________________________"]
[]
["dichiara di presentare la seguente offerta economica, che sottoscrive in calce ad ogni sua pagina, in relazione alle quantità indicate dei prodotti costituenti il lotto"]
["di gara, proponendo i seguenti prezzi unitari (cioè riferiti alle unità di misura - U.M. - specificate in tabella), espressi in euro sia in cifre sia in lettere."]
[]
["COD.","DESCRIZIONE PRODOTTO","U.M.","QUANTITÀ","PREZZO UNITARIO (EURO) IN CIFRE","PREZZO UNITARIO (EURO) IN LETTERE","IMPORTO COMPLESSIVO\n(EURO) IN CIFRE"]
["10.1","Pane toscano “Terra di San Marino” ","Kg",10000,0,{"$f":"valoreinlettere(E13)","v":"zero/00"},{"$f":"D13*E13","v":0}]
["10.2","Pane toscano a fette “Terra di San Marino”","Kg",3500,0,{"$f":"valoreinlettere(E14)","v":"zero/00"},{"$f":"D14*E14","v":0}]
["10.3","Pane dolce","Kg",600,0,{"$f":"valoreinlettere(E15)","v":"zero/00"},{"$f":"D15*E15","v":0}]
["10.4","Pane da toast ","Kg",1300,0,{"$f":"valoreinlettere(E16)","v":"zero/00"},{"$f":"D16*E16","v":0}]
["10.5","Pane grattugiato","Kg",2000,0,{"$f":"valoreinlettere(E17)","v":"zero/00"},{"$f":"D17*E17","v":0}]
["10.6","Baguette, lunghe e grosse","Kg",50,0,{"$f":"valoreinlettere(E18)","v":"zero/00"},{"$f":"D18*E18","v":0}]
["10.7","Pane alberghiero","Kg",600,0,{"$f":"valoreinlettere(E19)","v":"zero/00"},{"$f":"D19*E19","v":0}]
["10.8","Lievito naturale di birra","Kg",150,0,{"$f":"valoreinlettere(E20)","v":"zero/00"},{"$f":"D20*E20","v":0}]
[null,null,null,null,null,"IMPORTO COMPLESSIVO DEL LOTTO  >",{"$f":"SUM(G13:G20)","v":0}]

{"sheet":"L11 Pane SG","index":10,"n_rows":14,"n_cols":7,"rows_kept":14,"cut":false,"hidden":false,"merged":[[0,0,0,6],[1,0,1,6],[2,0,2,6]]}
["ALLEGATO D"]
["MODULO DI PRESENTAZIONE DELL'OFFERTA ECONOMICA"]
["LOTTO 11 – PANE FRESCO SURGELATO SENZA GLUTINE"]
[]
["Il sottoscritto _____________________________________________ in qualità di legale rappresentante o persona munita di idonea procura (già allegata alla dichiarazione"]
["di cui all'Allegato B al bando di gara) dell'impresa/ATI __________________________________________________________________________________ con sede legale a"]
["_____________________________________ in _____________________________________________________ n. _______ P.IVA/COE _________________________"]
[]
["dichiara di presentare la seguente offerta economica, che sottoscrive in calce ad ogni sua pagina, in relazione alle quantità indicate dei prodotti costituenti il lotto"]
["di gara, proponendo i seguenti prezzi unitari (cioè riferiti alle unità di misura - U.M. - specificate in tabella), espressi in euro sia in cifre sia in lettere."]
[]
["COD.","DESCRIZIONE PRODOTTO","U.M.","QUANTITÀ","PREZZO UNITARIO (EURO) IN CIFRE","PREZZO UNITARIO (EURO) IN LETTERE","IMPORTO COMPLESSIVO\n(EURO) IN CIFRE"]
["11.1","Rosetta senza glutine cotta e surgelata, 50 g circa","pezzi",3500,0,{"$f":"valoreinlettere(E13)","v":"zero/00"},{"$f":"D13*E13","v":0}]
[null,null,null,null,null,"IMPORTO COMPLESSIVO DEL LOTTO  >",{"$f":"SUM(G13:G13)","v":0}]

{"sheet":"L12 Gelato","index":11,"n_rows":14,"n_cols":7,"rows_kept":14,"cut":false,"hidden":false,"merged":[[0,0,0,6],[1,0,1,6],[2,0,2,6]]}
["ALLEGATO D"]
["MODULO DI PRESENTAZIONE DELL'OFFERTA ECONOMICA"]
["LOTTO 12 – GELATI"]
[]
["Il sottoscritto _____________________________________________ in qualità di legale rappresentante o persona munita di idonea procura (già allegata alla dichiarazione"]
["di cui all'Allegato B al bando di gara) dell'impresa/ATI __________________________________________________________________________________ con sede legale a"]
["_____________________________________ in _____________________________________________________ n. _______ P.IVA/COE _________________________"]
[]
["dichiara di presentare la seguente offerta economica, che sottoscrive in calce ad ogni sua pagina, in relazione alle quantità indicate dei prodotti costituenti il lotto"]
["di gara, proponendo i seguenti prezzi unitari (cioè riferiti alle unità di misura - U.M. - specificate in tabella), espressi in euro sia in cifre sia in lettere."]
[]
["COD.","DESCRIZIONE PRODOTTO","U.M.","QUANTITÀ","PREZZO UNITARIO (EURO) IN CIFRE","PREZZO UNITARIO (EURO) IN LETTERE","IMPORTO COMPLESSIVO\n(EURO) IN CIFRE"]
["12.1","Coppa gelato senza glutine, panna e gusti misti, 75 grammi circa","pezzi",9000,0,{"$f":"valoreinlettere(E13)","v":"zero/00"},{"$f":"D13*E13","v":0}]
[null,null,null,null,null,"IMPORTO COMPLESSIVO DEL LOTTO  >",{"$f":"SUM(G13:G13)","v":0}]